[Event "Fredericia IM 2022"]
[Site "Fredericia"]
[Date "2022.05.29"]
[Round "8.3"]
[White "Vinter-Schou, Uffe"]
[Black "Hilwerda, Jonas"]
[Result "1-0"]
[ECO "B31"]
[WhiteElo "2321"]
[BlackElo "2275"]
[Annotator "TA"]
[PlyCount "77"]
[EventDate "2022.05.25"]
[EventType "tourn"]
[EventCountry "DEN"]
[SourceTitle "playchess.com"]
[Source "ChessBase"]
[SourceQuality "1"]
[TimeControl "40/5400+30:1800+30"]

{[%evp 9,77,2,9,8,17,0,8,-18,0,-14,0,0,0,0,0,0,0,0,0,0,28,15,28,30,74,70,70,22,72,0,0,0,114,47,68,77,93,4,288,152,338,367,288,233,249,218,300,248,262,268,309,305,411,398,414,406,396,378,377,392,478,412,403,402,628,628,623,623,598,454]} 1. e4 {[%emt 0:00:02]} c5 {[%emt 0:01:46]} 2. Nf3 {[%emt 0:00:03]} Nc6 {[%emt 0:00:06]} 3. Bb5 {[%emt 0:00:11]} g6 {[%emt 0:00:06]} 4. c3 {[%emt 0:00:06]} Nf6 {[%emt 0:00:08]} 5. Qe2 {[%emt 0:00:15]} e5 {[%emt 0:00:05]} 6. O-O {[%emt 0:04:03] B31: Sicilian: 2...Nc6 3 Bb5 g6.} Bg7 $1 {[%emt 0:00:05]} 7. d3 {[%emt 0:07:06]} O-O {[%emt 0:00:10] [#]} 8. a3 $146 {[%emt 0:12:20] The position is equal.} ({Predecessor:} 8. Bg5 h6 9. Bxf6 Qxf6 10. Bc4 Qd8 11. Nbd2 d6 12. Rfe1 Rb8 13. a4 Kh7 14. h3 {½-½ (27) Becker,C (2204)-Catois,Y (1878) ICCF email 2020}) 8... Qc7 {[%emt 0:09:37]} 9. b4 {[%emt 0:02:42]} cxb4 {[%emt 0:07:57]} 10. axb4 {[%emt 0:00:13]} d5 {[%emt 0:00:23] Against Bc4} 11. Bg5 {[%emt 0:05:53]} dxe4 {[%emt 0:04:16]} 12. dxe4 {[%emt 0:00:03]} Nh5 {[%emt 0:00:17]} 13. g3 {[%emt 0:10:40]} Bg4 {[%emt 0:08:35]} 14. Nbd2 {[%emt 0:00:20]} Rfc8 {[%emt 0:19:36]} 15. Bc4 {[%emt 0:11:25]} Nd8 {[%emt 0:03:11]} 16. Rfc1 {[%emt 0:05:05]} Kh8 {[%emt 0:06:34]} 17. Bd5 {[%emt 0:04:16]} Nf6 {[%emt 0:06:47]} 18. Bb3 {[%emt 0:05:44] White is much more active. The black rooks are badly placed.} ({White should try} 18. Bxf6 $14 Bxf6 19. Nc4) 18... Nh5 {[%emt 0:06:33]} (18... Be6 $11) 19. Ra5 {[%emt 0:03:50]} (19. Qb5 $16 {White threatens Qe8+ and mate.} Nc6 20. Be3) 19... Nc6 $11 {[%emt 0:03:04]} 20. Raa1 {[%emt 0:00:09]} f5 {[%emt 0:03:18]} (20... Nd8 $1 $11) 21. Be6 {[%emt 0:12:14]} (21. exf5 $16 gxf5 22. h3 Bxh3 23. Nh4) 21... Rf8 $14 {[%emt 0:07:01]} 22. Qc4 $36 {[%emt 0:00:17][%mdl 2048] And now b5 would win. White is on the roll.} Qd6 {[%emt 0:04:40]} 23. Be3 {[%emt 0:02:11]} ({Better is} 23. Qd5 $16 Qb8 24. exf5 gxf5 25. Qc4 (25. b5 Nd8 $16)) 23... Rf6 $2 {[%emt 0:01:18][%mdl 8192] [#]} (23... f4 $1 $11 {and Black is okay.} 24. Bxg4 fxe3) 24. Ng5 {[%emt 0:03:57]} ({Only move:} 24. exf5 $1 $18 Bxf5 25. Bxf5 Rxf5 26. g4) 24... Nd8 $2 {[%emt 0:00:25] [#] A mistake that costs the game.} (24... f4 $16 {keeps fighting.} 25. Bxg4 fxe3) 25. exf5 $1 $18 {[%emt 0:00:17]} Bxf5 {[%emt 0:03:54]} 26. Bd5 {[%emt 0:00:38] Threatens to win with Nde4.} Rc8 {[%emt 0:00:35]} 27. Qb3 {[%emt 0:00:02]} ({But not} 27. Bc5 $6 Qd7) 27... Rf8 {[%emt 0:01:12]} 28. Bc5 {[%emt 0:03:15]} ({Weaker is} 28. Bxa7 Nf6 $16) 28... Rxc5 {[%emt 0:02:00]} 29. bxc5 {[%emt 0:00:03]} Qxc5 {[%emt 0:00:06]} 30. Nge4 {[%emt 0:00:21]} Bxe4 {[%emt 0:01:09]} 31. Nxe4 {[%emt 0:00:06]} Qe7 {[%emt 0:00:07]} 32. Rxa7 {[%emt 0:00:23]} Nf6 {[%emt 0:00:22]} 33. Nxf6 {[%emt 0:01:57]} Bxf6 {[%emt 0:00:11]} 34. Qb4 {[%emt 0:01:05]} Qg7 {[%emt 0:00:07]} 35. Ra8 {[%emt 0:01:34]} Be7 {[%emt 0:00:30]} 36. Qb6 {[%emt 0:00:15]} Qh6 {[%emt 0:00:55]} (36... Qf6 $142 37. Qxf6+ Bxf6) 37. Rd1 {[%emt 0:00:23] White is clearly winning.} Qh5 {[%emt 0:01:14]} 38. Bb3 {[%emt 0:00:16]} Qg5 {[%emt 0:00:24]} 39. h4 {[%emt 0:00:58] Weighted Error Value: White=0.22 (precise) /Black=0.49} 1-0

[Event "Fredericia IM 2022"]
[Site "Fredericia"]
[Date "2022.05.29"]
[Round "8.5"]
[White "Easwaralingam, Adesh"]
[Black "Egilstoft, Rogvi"]
[Result "1/2-1/2"]
[ECO "C70"]
[WhiteElo "2116"]
[BlackElo "2334"]
[Annotator "TA"]
[PlyCount "84"]
[EventDate "2022.05.25"]
[EventType "tourn"]
[EventCountry "DEN"]
[SourceTitle "playchess.com"]
[Source "ChessBase"]
[SourceQuality "1"]
[TimeControl "40/5400+30:1800+30"]

{[%evp 10,84,79,31,47,6,0,0,21,0,0,-6,-6,-15,0,0,0,-28,8,-28,-2,-30,-23,-26,-26,-47,-4,-29,-14,-38,-37,-29,-30,-36,0,0,18,11,17,-10,33,0,49,23,39,29,33,0,70,0,84,41,100,95,97,15,46,-27,34,60,122,164,165,171,120,113,135,134,217,0,0,0,0,0,0,0,0]} 1. e4 {[%emt 0:00:04]} e5 {[%emt 0:00:22]} 2. Nf3 {[%emt 0:00:26]} Nc6 {[%emt 0:00:12]} 3. Bb5 {[%emt 0:00:40]} a6 {[%emt 0:02:05]} 4. Ba4 {[%emt 0:00:29]} Bc5 {[%emt 0:00:51]} 5. O-O {[%emt 0:00:43]} Nge7 {[%emt 0:00:52] [#]} 6. c3 {[%emt 0:00:39]} ({Better is} 6. Nxe5 $1 $16 Nxe5 7. d4) 6... Ba7 $14 {[%emt 0:01:00] C64: Ruy Lopez: Classical Defence (3...Bc5) except 4 0-0 Nf6.} 7. h3 {[%emt 0:03:49]} O-O {[%emt 0:05:50]} 8. d4 {[%emt 0:00:39]} d6 {[%emt 0:02:33]} 9. Bg5 {[%emt 0:03:42]} f6 {[%emt 0:06:57] [#]} 10. Bc1 $146 {[%emt 0:04:24]} ({Predecessor:} 10. Be3 Kh8 11. Bb3 Bd7 12. Re1 Be8 13. Nbd2 Bh5 14. g4 Bg6 15. Be6 d5 16. exd5 Nxd5 17. Bxd5 Qxd5 {0-1 (33) Zhu,J (2459)-Nihal,S (2620) chess24.com INT 2021}) 10... Kh8 {[%emt 0:00:35]} 11. Bc2 {[%emt 0:05:23]} Qe8 {[%emt 0:06:14]} 12. d5 {[%emt 0:04:35]} Nb8 {[%emt 0:02:16]} (12... Qg6 $2 13. dxc6 Nxc6 14. Nh4 $18) 13. Be3 {[%emt 0:03:48]} Qh5 {[%emt 0:05:18]} 14. Nh2 {[%emt 0:04:29]} Qg6 {[%emt 0:01:46] Black wants to play ...Bxe3.} 15. Kh1 {[%emt 0:01:27]} Bxe3 {[%emt 0:05:45]} 16. fxe3 {[%emt 0:00:21]} Nd7 {[%emt 0:00:06]} 17. Nd2 {[%emt 0:01:53]} Nb6 {[%emt 0:00:17]} 18. b4 {[%emt 0:05:07]} a5 {[%emt 0:03:03]} 19. a3 {[%emt 0:02:40][%cal Ba2a3,Ba3a4,Ba4a5][%mdl 32]} axb4 {[%emt 0:07:56]} 20. cxb4 {[%emt 0:00:06]} Qh6 {[%emt 0:00:38]} 21. Rf3 {[%emt 0:09:30]} Bd7 {[%emt 0:03:58]} 22. a4 $1 {[%emt 0:02:28]} Ng6 {[%emt 0:00:32]} 23. a5 {[%emt 0:03:00]} Nc8 {[%emt 0:00:13]} 24. Qe2 {[%emt 0:00:32]} Nce7 {[%emt 0:06:11]} 25. Ndf1 {[%emt 0:03:18]} Rac8 {[%emt 0:09:12]} (25... c6 $11 {deserves consideration.}) 26. Rd1 {[%emt 0:03:33]} Nh4 {[%emt 0:02:27]} 27. Rf2 {[%emt 0:01:07]} f5 {[%emt 0:00:54]} 28. exf5 {[%emt 0:02:45]} Nexf5 {[%emt 0:01:03]} ({Don't take} 28... Bxf5 29. b5 $14) (28... Nhxf5 $11 29. Kg1 g6) 29. Nf3 {[%emt 0:08:34]} ({White should play} 29. b5 $14) 29... Ng6 {[%emt 0:03:35]} (29... Ne7 $11) 30. Kg1 {[%emt 0:04:06]} Rf7 {[%emt 0:04:49]} (30... Nfh4 $1 $14) 31. Bxf5 {[%emt 0:04:41]} Bxf5 {[%emt 0:01:48] [#]} 32. N1h2 {[%emt 0:00:15]} (32. Ng3 $1 $16) 32... Rcf8 {[%emt 0:01:41][%cal Of5h3]} 33. Rd2 {[%emt 0:03:15]} (33. Rdf1 $1 $14) 33... e4 {[%emt 0:04:34]} (33... Be4 $11) 34. Nd4 {[%emt 0:00:41]} Ne5 {[%emt 0:00:10]} (34... Qg5 $14) 35. Rxf5 {[%emt 0:01:40]} Rxf5 {[%emt 0:00:04]} 36. Nxf5 {[%emt 0:00:08]} Rxf5 {[%emt 0:00:04]} 37. Rd4 {[%emt 0:01:24]} Qh4 {[%emt 0:04:26]} 38. Ng4 {[%emt 0:01:00]} h6 {[%emt 0:06:17] [#]} (38... Nf3+ $16 39. gxf3 exf3) 39. Nf2 $2 {[%emt 0:02:04]} (39. Nxe5 $1 $18 {Strongly threatening Ng6+.} dxe5 40. Rd1) 39... Qg3 $36 {[%emt 0:02:06][%mdl 2048] Black has good play. The position is equal.} 40. Rxe4 {[%emt 0:02:28]} Nf3+ {[%emt 0:00:35][%mdl 64] Discovered Attack} ({Much less strong is} 40... Rg5 41. Ng4 Rf5 42. Nxe5 Rxe5 43. Qc4 $16) 41. Kf1 {[%emt 0:30:30]} Nh2+ {[%emt 0:01:51]} 42. Kg1 $1 {[%emt 0:00:00][%cal Oe4f4] Threatens to win with Rf4!} Nf3+ $1 {[%emt 0:00:28] Weighted Error Value: White=0.28 (precise) /Black=0.24 (precise)} 1/2-1/2

[Event "Fredericia IM 2022"]
[Site "Fredericia"]
[Date "2022.05.29"]
[Round "9.2"]
[White "Ramsdal, Jens Albert"]
[Black "Bogdanov, Egor"]
[Result "0-1"]
[ECO "A05"]
[WhiteElo "2267"]
[BlackElo "2415"]
[Annotator "TA"]
[PlyCount "36"]
[EventDate "2022.05.25"]
[EventType "tourn"]
[EventCountry "DEN"]
[SourceTitle "playchess.com"]
[Source "ChessBase"]
[SourceQuality "1"]
[TimeControl "40/5400+30:1800+30"]

{[%evp 13,36,29,36,0,0,-18,-13,-24,-6,-38,-25,-36,-36,-157,-150,-165,-135,-604,-566,-787,-771,-754,-755,-684,-627]} 1. Nf3 {[%emt 0:00:22] Krasenkow,Michal} Nf6 {[%emt 0:00:05]} 2. c4 {[%emt 0:00:21]} g6 {[%emt 0:00:04]} 3. Nc3 {[%emt 0:00:05]} Bg7 {[%emt 0:00:05]} 4. e4 {[%emt 0:00:35]} d6 {[%emt 0:00:12]} 5. d4 {[%emt 0:00:05]} O-O {[%emt 0:00:03]} 6. h3 {[%emt 0:00:48]} e5 {[%emt 0:00:06]} 7. d5 {[%emt 0:00:05]} Nh5 {[%emt 0:00:11]} 8. Nd2 {[%emt 0:19:58] E90: King's Indian: Classical: Early deviations and 6 h3.} Qe8 {[%emt 0:03:27] [#]} 9. Qc2 $146 {[%emt 0:04:10]} ({Predecessor:} 9. g3 f5 10. Be2 Nf6 11. g4 Na6 12. f3 Qe7 13. Nf1 Nc5 14. Qc2 Ne8 15. Be3 fxe4 16. Nxe4 Nxe4 17. fxe4 {1-0 (38) Sakaev,K (2626)-Radjabov,T (2748) Khanty-Mansiysk 2009 CBM 134 [Krasenkow,Michal]}) 9... f5 {[%emt 0:03:11]} 10. Be2 {[%emt 0:00:45] The position is equal.} Nf4 {[%emt 0:01:21]} 11. Bf3 {[%emt 0:04:24]} Na6 {[%emt 0:00:39]} 12. a3 {[%emt 0:03:07] Prevents Nb4.} Nc5 {[%emt 0:01:24]} 13. O-O {[%emt 0:00:05] [#]} ({White should play} 13. b4 $1 $15 Ncd3+ 14. Kf1) 13... g5 $1 $17 {[%emt 0:07:32][%cal Bg6g5,Bg5g4][%mdl 32] Black is more active.} 14. b4 {[%emt 0:02:15] [#]} g4 $1 $36 {[%emt 0:03:12][%mdl 2048] Black is in control.} 15. hxg4 {[%emt 0:07:33][%mdl 8192]} (15. Bd1 $17 Ncd3 16. exf5 Bxf5 17. Nde4 gxh3 18. g3) 15... fxg4 $19 {[%emt 0:00:15] Black is clearly winning.} 16. bxc5 {[%emt 0:03:22] Black must now prevent Bd1.} gxf3 {[%emt 0:02:51]} 17. Nxf3 {[%emt 0:00:08] [#]} Nh3+ $1 {[%emt 0:08:45][%mdl 576] Deflection} 18. gxh3 {[%emt 0:00:59]} (18. Kh2 Qh5) 18... Rxf3 {[%emt 0:00:24] Black took control after the opening.  Weighted Error Value: White=1.13/Black=0.01 (flawless)} 0-1

[Event "Fredericia IM 2022"]
[Site "Fredericia"]
[Date "2022.05.29"]
[Round "9.3"]
[White "Egilstoft, Rogvi"]
[Black "Vinter-Schou, Uffe"]
[Result "0-1"]
[ECO "B22"]
[WhiteElo "2334"]
[BlackElo "2321"]
[Annotator "TA"]
[PlyCount "76"]
[EventDate "2022.05.25"]
[EventType "tourn"]
[EventCountry "DEN"]
[SourceTitle "playchess.com"]
[Source "ChessBase"]
[SourceQuality "1"]
[TimeControl "40/5400+30:1800+30"]

{[%evp 19,76,0,0,0,0,0,0,-4,75,76,62,80,68,0,27,18,0,0,11,0,12,14,0,-7,29,14,0,-37,-48,-150,-138,-123,-15,-10,-14,-8,-11,-24,0,-97,-98,-208,-102,-118,-106,-364,-350,-345,-344,-438,-429,-440,-395,-750,-733,-5206,-1764,-5293,-2296]} 1. e4 {[%emt 0:00:04][%cal Be2e4,Be4e5,Be5e6][%mdl 32]} c5 {[%emt 0:00:17]} 2. c3 {[%emt 0:00:24]} Nf6 {[%emt 0:00:09]} 3. e5 {[%emt 0:00:29]} Nd5 {[%emt 0:00:02]} 4. d4 {[%emt 0:00:24]} cxd4 {[%emt 0:00:06]} 5. cxd4 {[%emt 0:00:07]} d6 {[%emt 0:01:36]} 6. Bc4 {[%emt 0:01:01]} Nb6 {[%emt 0:01:51]} 7. Bb5+ {[%emt 0:00:08]} Bd7 {[%emt 0:00:44]} 8. e6 {[%emt 0:00:16]} Bxb5 {[%emt 0:13:51]} 9. Qh5 {[%emt 0:00:09]} Qc8 {[%emt 0:00:10]} 10. Qxb5+ {[%emt 0:00:44]} Kd8 {[%emt 0:00:09]} 11. Be3 {[%emt 0:01:36] B22: Sicilian: 2 c3.} fxe6 {[%emt 0:08:57]} 12. Nc3 {[%emt 0:05:49]} Qc4 {[%emt 0:00:55]} 13. Qg5 {[%emt 0:14:13] The position is equal.} Nc6 {[%emt 0:01:13]} (13... Nd5 $11 {keeps the balance.}) 14. Nge2 $16 {[%emt 0:01:33][%mdl 1024] [#] White has strong compensation.} g6 $146 {[%emt 0:09:01]} ({Predecessor:} 14... Kd7 15. O-O Qd3 16. Rfd1 h6 17. Rxd3 hxg5 18. Bxg5 Rc8 19. Re1 e5 20. dxe5 Nxe5 {1-0 (38) Pavasovic,D (2596)-Borisek,J (2443) Terme Zrece 2003}) 15. O-O {[%emt 0:03:57] aiming for Nf4.} Bg7 {[%emt 0:00:41]} 16. Rfe1 {[%emt 0:24:18]} Kd7 {[%emt 0:05:16]} 17. Rad1 {[%emt 0:16:16]} Raf8 $1 {[%emt 0:05:18]} 18. Qg4 {[%emt 0:06:16]} Nd5 {[%emt 0:10:27]} 19. b3 {[%emt 0:02:51]} Nxe3 {[%emt 0:00:10]} 20. fxe3 {[%emt 0:00:10]} Qb4 {[%emt 0:00:51]} 21. Ne4 {[%emt 0:00:52]} Rf5 {[%emt 0:05:31]} 22. Nf4 {[%emt 0:01:15] next Ng5 is good for White. Pair of Knights!} Rhf8 {[%emt 0:06:09][%cal Rg7d4] Hoping for ...Bxd4!} 23. Nxe6 {[%emt 0:03:15][%mdl 64] Decoy} Kxe6 {[%emt 0:02:20] The board is on fire.} 24. Ng5+ {[%emt 0:00:38]} ({White should try} 24. Ng3 $15 Kf7 25. Nxf5 gxf5 26. Qxf5+ Kg8 27. Qd5+ Kh8 28. Rf1) 24... Kd7 $17 {[%emt 0:04:10][%cal Be6d7,Bd7e8,Be8f7][%mdl 32] ...h5 is the strong threat.} 25. Nxh7 {[%emt 0:00:32] [#]} R8f7 {[%emt 0:06:13]} ({Black should play} 25... Rg8 $1 $17 {White must now prevent ...e6.} 26. e4 Bxd4+ 27. Kh1 Bc3) 26. Ng5 $11 {[%emt 0:02:40]} Ke8 {[%emt 0:05:24][%cal Oc6e5] White should prevent ...Ne5!} 27. Nxf7 {[%emt 0:03:51]} Kxf7 {[%emt 0:00:01]} 28. Rf1 {[%emt 0:00:42]} Rf6 {[%emt 0:02:10]} 29. Qd7 {[%emt 0:02:33]} (29. Qh3 $11) 29... Qc3 $36 {[%emt 0:02:28][%mdl 2048] Keeping White busy.} 30. Rde1 {[%emt 0:01:57]} (30. Qh3 $17 {was called for.}) 30... Rxf1+ {[%emt 0:02:16]} (30... Bh6 $19 {has better winning chances.} 31. e4 Qxd4+ 32. Kh1 Qd3 33. Rxf6+ Kxf6 34. Qxb7 Bd2) 31. Rxf1+ {[%emt 0:00:01]} Bf6 {[%emt 0:00:01]} 32. Qxb7 $2 {[%emt 0:02:42][%mdl 8192] This costs White the game.} (32. Qh3 $17) 32... Qxe3+ $19 {[%emt 0:00:06]} 33. Kh1 {[%emt 0:00:08]} Qe2 {[%emt 0:01:37][%cal Re2f1] [#]} ({Avoid the trap} 33... Nxd4 $2 34. Qxa7 Qd3 35. Rg1 $19) 34. Rc1 {[%emt 0:00:50]} Nxd4 {[%emt 0:00:14]} 35. Qxa7 {[%emt 0:00:34]} Nf5 {[%emt 0:00:25]} 36. Qa4 $2 {[%emt 0:00:52]} (36. Qg1 Qxa2 37. Qd1) 36... Ne3 {[%emt 0:01:42][%csl Ge3][%cal Re2g2] Black is clearly winning.} 37. Qe4 {[%emt 0:01:34]} Qd2 {[%emt 0:00:09][%cal Rd2c1]} 38. Rg1 {[%emt 0:00:56]} Nd1 {[%emt 0:00:37] Weighted Error Value: White=1.06/Black=0.20 (precise)} 0-1

[Event "Fredericia IM 2022"]
[Site "Fredericia"]
[Date "2022.05.29"]
[Round "9.4"]
[White "Boe, Mads"]
[Black "Easwaralingam, Adesh"]
[Result "1/2-1/2"]
[ECO "A46"]
[WhiteElo "2293"]
[BlackElo "2116"]
[Annotator "TA"]
[PlyCount "62"]
[EventDate "2022.05.25"]
[EventType "tourn"]
[EventCountry "DEN"]
[SourceTitle "playchess.com"]
[Source "ChessBase"]
[SourceQuality "1"]
[TimeControl "40/5400+30:1800+30"]

{[%evp 16,62,-11,-22,-26,-22,-25,-27,-31,-35,-41,-43,-53,-40,-41,-58,-50,-68,-45,-43,-44,-47,-41,-41,-33,-40,-39,-39,-39,-35,-16,-25,0,-30,-30,-44,0,-32,-37,-62,-62,-56,-44,-47,0,-56,-43,-45,0]} 1. d4 {[%emt 0:00:03]} Nf6 {[%emt 0:00:21]} 2. Nf3 {[%emt 0:00:08]} d5 {[%emt 0:00:18]} 3. c4 {[%emt 0:00:16]} e6 {[%emt 0:00:07]} 4. cxd5 {[%emt 0:00:53]} exd5 {[%emt 0:01:52]} 5. Nc3 {[%emt 0:00:07]} c6 {[%emt 0:00:53]} 6. Bg5 {[%emt 0:00:07][%cal Bc1g5,Bg5h4,Bh4g3][%mdl 32]} h6 {[%emt 0:01:05]} 7. Bh4 {[%emt 0:00:49]} Bf5 {[%emt 0:00:11]} 8. Qb3 {[%emt 0:10:57]} g5 {[%emt 0:03:27]} 9. Bg3 {[%emt 0:02:36]} Qb6 {[%emt 0:03:15] D35: Queen's Gambit Declined: Exchange Variation.} 10. e3 {[%emt 0:02:26]} Nbd7 {[%emt 0:00:31]} 11. Be2 {[%emt 0:12:08]} Nh5 {[%emt 0:05:51] Black has an edge.} 12. Nd2 {[%emt 0:22:30]} Nxg3 {[%emt 0:02:05]} 13. hxg3 {[%emt 0:00:57]} O-O-O {[%emt 0:09:37]} 14. Rc1 {[%emt 0:04:28]} Kb8 {[%emt 0:02:12] [#]} 15. Bd1 $146 {[%emt 0:00:10]} ({Predecessor:} 15. Na4 Qxb3 16. Nxb3 Bb4+ 17. Kd1 Bd6 18. Nac5 Nf6 19. Nd2 h5 20. Bd3 Bc8 21. Nf3 Ng4 22. Ke2 Rdg8 23. Bb1 Rh6 {½-½ (23) Margvelashvili,G (2435)-Parligras,M (2542) Kavala 2007}) 15... Re8 {[%emt 0:05:56]} 16. Kf1 {[%emt 0:11:22]} Bg6 {[%emt 0:14:57]} 17. Qxb6 {[%emt 0:04:11]} axb6 {[%emt 0:01:38]} 18. Bc2 {[%emt 0:00:06]} Bxc2 {[%emt 0:01:08]} 19. Rxc2 {[%emt 0:00:30]} f5 {[%emt 0:00:30]} 20. Nf3 {[%emt 0:00:30][%cal Of3g5] [#] Hoping for Nxg5!} Bd6 {[%emt 0:05:22]} 21. a4 {[%emt 0:06:05]} Nf6 {[%emt 0:03:11]} 22. Ke2 {[%emt 0:07:04]} Ng4 {[%emt 0:04:18]} (22... Rh7 {with more complications.} 23. Kd3 Bb4 24. Na2 Bf8) 23. Nh2 {[%emt 0:00:53]} Nf6 {[%emt 0:00:19]} 24. Nf3 {[%emt 0:00:05]} Rh7 {[%emt 0:03:47]} 25. Rcc1 {[%emt 0:01:47]} Rhh8 {[%emt 0:02:10]} 26. Rc2 $1 {[%emt 0:00:05]} Kc8 {[%emt 0:03:50]} 27. Rcc1 {[%emt 0:00:04]} Kd7 {[%emt 0:00:34]} 28. b3 {[%emt 0:00:25]} Rh7 {[%emt 0:06:07]} 29. Rc2 {[%emt 0:00:06]} Rhh8 {[%emt 0:01:46]} 30. Rcc1 {[%emt 0:00:05]} Ng4 {[%emt 0:03:24]} 31. Nh2 {[%emt 0:00:26]} Nf6 {Weighted Error Value: White=0.04 (flawless) /Black=0.08 (flawless)} 1/2-1/2

[Event "Fredericia IM 2022"]
[Site "Fredericia"]
[Date "2022.05.29"]
[Round "9.5"]
[White "Hilwerda, Jonas"]
[Black "Thorsbro, Peter"]
[Result "1/2-1/2"]
[ECO "C45"]
[WhiteElo "2275"]
[BlackElo "2192"]
[Annotator "TA"]
[PlyCount "62"]
[EventDate "2022.05.25"]
[EventType "tourn"]
[EventCountry "DEN"]
[SourceTitle "playchess.com"]
[Source "ChessBase"]
[SourceQuality "1"]
[TimeControl "40/5400+30:1800+30"]

{[%evp 18,62,9,1,3,6,2,0,0,0,42,0,13,0,27,15,12,8,12,6,2,0,0,0,3,4,18,4,25,17,29,0,6,0,20,12,23,0,12,0,0,0,0,0,0,0,0]} 1. e4 {[%emt 0:00:06]} e5 {[%emt 0:00:03]} 2. Nf3 {[%emt 0:00:07]} Nc6 {[%emt 0:00:04]} 3. d4 {[%emt 0:00:11]} exd4 {[%emt 0:00:07]} 4. Nxd4 {[%emt 0:00:05]} Nf6 {[%emt 0:00:05]} 5. Nxc6 {[%emt 0:00:06]} bxc6 {[%emt 0:00:06]} 6. e5 {[%emt 0:00:05]} Qe7 {[%emt 0:00:06]} 7. Qe2 {[%emt 0:00:05]} Nd5 {[%emt 0:00:03]} 8. c4 {[%emt 0:00:07]} Nb6 {[%emt 0:00:05]} 9. Nc3 {[%emt 0:00:39]} Qe6 {[%emt 0:03:46]} 10. Qe4 {[%emt 0:00:22]} d5 {[%emt 0:00:42] C45: Scotch Game.} 11. exd6 {[%emt 0:01:13]} cxd6 {[%emt 0:00:21]} 12. Be3 {[%emt 0:01:40]} Qxe4 {[%emt 0:00:39]} 13. Nxe4 {[%emt 0:00:04]} f5 {[%emt 0:03:36] [#]} 14. Nc3 $146 {[%emt 0:01:03]} ({Predecessor:} 14. Nd2 Be7 15. O-O-O O-O 16. f4 Be6 17. Re1 Kf7 18. Bd4 Rg8 19. Bd3 c5 20. Bf2 {1-0 (37) Mokal,A (2078)-Schroeder,M (1961) Leiden 2016}) 14... Be6 {[%emt 0:00:35]} 15. b3 {[%emt 0:00:43]} Be7 {[%emt 0:02:20]} 16. O-O-O {[%emt 0:04:06]} O-O {[%emt 0:00:32]} 17. g3 {[%emt 0:02:57]} d5 {[%emt 0:01:19]} 18. cxd5 {[%emt 0:02:38]} Nxd5 {[%emt 0:00:26]} 19. Bd4 {[%emt 0:01:14]} Ba3+ {[%emt 0:02:04]} 20. Kb1 {[%emt 0:03:10]} Nxc3+ {[%emt 0:00:58]} 21. Bxc3 {[%emt 0:00:06]} f4 {[%emt 0:00:22]} 22. Bd3 {[%emt 0:24:15]} Rad8 {[%emt 0:13:58]} 23. Be4 {[%emt 0:03:26]} Bc5 {[%emt 0:01:27]} 24. gxf4 {[%emt 0:16:35]} Bxf2 {[%emt 0:12:28]} 25. Be5 {[%emt 0:07:41]} Bg4 {[%emt 0:08:05]} 26. Rxd8 {[%emt 0:14:37]} Rxd8 {[%emt 0:03:19]} 27. Kc2 {[%emt 0:00:06]} c5 {[%emt 0:02:19] The position is equal.} 28. Bd3 {[%emt 0:06:50]} Bd4 {[%emt 0:02:21]} 29. Re1 {[%emt 0:00:32]} Bf2 {[%emt 0:00:50]} 30. Rh1 {[%emt 0:00:50]} Bd4 {[%emt 0:00:06]} 31. Re1 {[%emt 0:00:16]} Bf2 {[%emt 0:00:05] An even fight not without its subleties.  Weighted Error Value: White=0.07 (flawless) /Black=0.09 (flawless)} 1/2-1/2